Workbook

Sheet FORM 2
K1: FORM 2
A2: PERUMUSAN NAMA JABATAN
A3: SKPD | D3: : KECAMATAN ………..
A4: UNIT KERJA | D4: : -
A6: NO | B6: URAIAN TUGAS DAN | E6: HASIL KERJA | F6: VOL | G6: SATUAN | H6: WAKTU (MENIT) | I6: BEBAN KERJA | J6: NAMA JABATAN | K6: KET
B7: TAHAPAN
A8: 1 | B8: 2 | E8: 3 | F8: 4 | G8: 5 | H8: 6 | I8: 7 | J8: 8 | K8: 9
A10: I | B10: Konseptual & Managerial (CAMAT) | I10: =I11+I18+I25+I32+I39+I46+I54+I61+I68+I75+I88+I96+I102+I108+I82 -> 91,840 | J10: Camat | K10: 1 orang
B11: 1 | C11: Merencanakan kegiatan Kecamatan sesuai program kerja Pemerintah Kabupaten Magelang dan ketentuan yang berlaku untuk pedoman pelaksanaan tugas. | E11: Program Kerja | F11: 2 | G11: dokumen | H11: =I11/F11 -> 375 | I11: =SUM(I12:I16) -> 750
C12: 1) | D12: Mempelajari pedoman pelaksanaan tugas; | F12: 2 | H12: 60 | I12: =F12*H12 -> 120
C13: 2) | D13: Menelaah Program Kerja Pemerintah Kabupaten Magelang; | F13: 2 | H13: 60 | I13: =F13*H13 -> 120
C14: 3) | D14: Menyusun konsep rencana kegiatan Kecamatan; | F14: 2 | H14: 180 | I14: =F14*H14 -> 360
C15: 4) | D15: Mengkonsultasikan konsep rencana kegiatan dengan pimpinan untuk mendapatkan pengarahan; | F15: 2 | H15: 60 | I15: =F15*H15 -> 120
C16: 5) | D16: Menetapkan rencana kegiatan Kecamatan. | F16: 2 | H16: 15 | I16: =F16*H16 -> 30
B18: 2 | C18: Membagi tugas kepada bawahan di lingkungan Kecamatan sesuai dengan beban kerja dan tanggung jawab masing-masing untuk kelancaran pelaksanaan tugas. | E18: Distribusi Tugas | F18: 12 | G18: kali | H18: =I18/F18 -> 240 | I18: =SUM(I19:I23) -> 2,880
C19: 1) | D19: Menjabarkan rencana kegiatan menjadi tugas-tugas yang harus dilaksanakan bawahan; | F19: 12 | H19: 60 | I19: =F19*H19 -> 720
C20: 2) | D20: Memaparkan rencana kegiatan Kecamatan; | F20: 12 | H20: 60 | I20: =F20*H20 -> 720
C21: 3) | D21: Menghimpun saran dan masukan dari bawahan; | F21: 12 | H21: 30 | I21: =F21*H21 -> 360
C22: 4) | D22: Menentukan target waktu penyelesaian; | F22: 12 | H22: 30 | I22: =F22*H22 -> 360
C23: 5) | D23: Memberikan petunjuk pelaksanaan tugas kepada bawahan. | F23: 12 | H23: 60 | I23: =F23*H23 -> 720
B25: 3 | C25: Melaksanakan supervisi pelaksanaan tugas bawahan di lingkungan Kecamatan setiap saat sesuai dengan tugas dan tanggung jawabnya agar pekerjaan berjalan tertib dan lancar. | E25: kegiatan | F25: 24 | G25: kali | H25: =I25/F25 -> 285 | I25: =SUM(I26:I30) -> 6,840
C26: 1) | D26: Menjelaskan tugas yang akan dilaksanakan bawahan; | F26: 24 | H26: 45 | I26: =F26*H26 -> 1,080
C27: 2) | D27: Mengidentifikasi kesulitan yang dialami bawahan; | F27: 24 | H27: 60 | I27: =F27*H27 -> 1,440
C28: 3) | D28: Mengkoordinasikan pelaksanaan tugas; | F28: 24 | H28: 60 | I28: =F28*H28 -> 1,440
C29: 4) | D29: Mengkonsultasikan permasalahan kepada pimpinan; | F29: 24 | H29: 60 | I29: =F29*H29 -> 1,440
C30: 5) | D30: Memberikan arahan kepada bawahan terkait permasalahan dalam pelaksanaan tugas. | F30: 24 | H30: 60 | I30: =F30*H30 -> 1,440
B32: 4 | C32: Mengoordinasikan kegiatan pemberdayaan masyarakat sesuai ketentuan untuk meningkatkan kesejahteraan masyarakat. | E32: kegiatan | F32: 24 | G32: kali | H32: =I32/F32 -> 300 | I32: =SUM(I33:I37) -> 7,200
C33: 1) | D33: Mempelajari pedoman pelaksaaan tugas; | F33: 24 | H33: 60 | I33: =F33*H33 -> 1,440
C34: 2) | D34: Meneliti dan memveriifkasi rencana kegiatan pemberdayaan masyarakat; | F34: 24 | H34: 60 | I34: =F34*H34 -> 1,440
C35: 3) | D35: Menyelenggarakan koordinasi lintas sektor terkait kegiatan pemberdayaan masyarakat; | F35: 24 | H35: 120 | I35: =F35*H35 -> 2,880
C36: 4) | D36: Mendisposisi bawahan untuk tindak lanjut pelaksanaan; | F36: 24 | H36: 30 | I36: =F36*H36 -> 720
C37: 5) | D37: Menyelia hasil pelaksanaan tugas bawahan. | F37: 24 | H37: 30 | I37: =F37*H37 -> 720
B39: 5 | C39: Mengoordinasikan upaya penyelenggaraan ketentraman dan ketertiban umum sesuai ketentuan untuk terwujudnya lingkungan yang tenteram dan tertib. | E39: kegiatan | F39: 12 | G39: kali | H39: =I39/F39 -> 300 | I39: =SUM(I40:I44) -> 3,600
C40: 1) | D40: Mempelajari pedoman pelaksaaan tugas; | F40: 12 | H40: 60 | I40: =F40*H40 -> 720
C41: 2) | D41: Meneliti dan memveriifkasi data ketentraman dan ketertiban umum; | F41: 12 | H41: 60 | I41: =F41*H41 -> 720
C42: 3) | D42: Menyelenggarakan koordinasi lintas sektor terkait ketentraman dan ketertiban umum; | F42: 12 | H42: 120 | I42: =F42*H42 -> 1,440
C43: 4) | D43: Mendisposisi bawahan untuk tindak lanjut pelaksanaan; | F43: 12 | H43: 30 | I43: =F43*H43 -> 360
C44: 5) | D44: Menyelia hasil pelaksanaan tugas bawahan. | F44: 12 | H44: 30 | I44: =F44*H44 -> 360
B46: 6 | C46: Mengkoordinasikan penerapan dan penegakan peraturan perundang-undangan sesuai ketentuan untuk terwujudnya masyarakat yang sadar hukum. | E46: kegiatan | F46: 12 | G46: kali | H46: =I46/F46 -> 328 | I46: =SUM(I47:I52) -> 3,930
C47: 1) | D47: Mempelajari pedoman pelaksaaan tugas. | F47: 10 | H47: 60 | I47: =F47*H47 -> 600
C48: 2) | D48: Mengalisa dan mengevaluasi bahan kebijakan teknis | F48: 12 | H48: 60 | I48: 720
C49: 3) | D49: Mengumpulkan bahan dan data | F49: 12 | H49: 60 | I49: 720
C50: 4) | D50: Mengonsep rencana kebijakan teknis | F50: 15 | H50: 30 | I50: 450
C51: 5) | D51: Mengkoordinasikan dengan kepala desa dan instansi terkait | F51: 12 | H51: 60 | I51: 720
C52: 6) | D52: Merevisi konsep kebijakan teknis. | F52: 12 | H52: 60 | I52: 720
B54: 7 | C54: Mengoordinasikan pemeliharaan prasarana dan fasilitas pelayanan umum sesuai ketentuan untuk kenyamanan masyarakat. | E54: kegiatan | F54: 12 | G54: kali | H54: =I54/F54 -> 300 | I54: =SUM(I55:I59) -> 3,600
C55: 1) | D55: Mempelajari pedoman pelaksaaan tugas; | F55: 12 | H55: 60 | I55: =F55*H55 -> 720
C56: 2) | D56: Meneliti dan memveriifkasi data prasarana dan fasilitas pelayanan umum; | F56: 12 | H56: 60 | I56: =F56*H56 -> 720
C57: 3) | D57: Menyelenggarakan koordinasi lintas sektor terkait prasarana dan fasilitas pelayanan umum; | F57: 12 | H57: 120 | I57: =F57*H57 -> 1,440
C58: 4) | D58: Mendisposisi bawahan untuk tindak lanjut pelaksanaan; | F58: 12 | H58: 30 | I58: =F58*H58 -> 360
C59: 5) | D59: Menyelia hasil pelaksanaan tugas bawahan. | F59: 12 | H59: 30 | I59: =F59*H59 -> 360
B61: 8 | C61: Mengoordinasikan penyelenggaraan kegiatan pemerintahan di tingkat kecamatan sesuai kewenangan dan tanggung jawab yang dimiliki untuk kelancaran penyelenggaraan kegiatan pemerintahan tingkat kecamatan. | E61: kegiatan | F61: 12 | G61: kali | H61: =I61/F61 -> 300 | I61: =SUM(I62:I66) -> 3,600
C62: 1) | D62: Mempelajari pedoman pelaksaaan tugas; | F62: 12 | H62: 60 | I62: =F62*H62 -> 720
C63: 2) | D63: Meneliti dan memveriifkasi data penyelenggaraan kegiatan pemerintahan di tingkat kecamatan; | F63: 12 | H63: 60 | I63: =F63*H63 -> 720
C64: 3) | D64: Menyelenggarakan koordinasi lintas sektor terkait penyelenggaraan kegiatan pemerintahan di tingkat kecamatan; | F64: 12 | H64: 120 | I64: =F64*H64 -> 1,440
C65: 4) | D65: Mendisposisi bawahan untuk tindak lanjut pelaksanaan; | F65: 12 | H65: 30 | I65: =F65*H65 -> 360
C66: 5) | D66: Menyelia hasil pelaksanaan tugas bawahan. | F66: 12 | H66: 30 | I66: =F66*H66 -> 360
B68: 9 | C68: Membina penyelenggaraan pemerintahan desa dan/atau kelurahan sesuai kewenangan dan tanggung jawab yang dimiliki untuk kelancaran penyelenggaraan pemerintahan desa dan/atau keleurahan. | E68: kegiatan | F68: 40 | G68: kali | H68: =I68/F68 -> 306 | I68: =SUM(I69:I73) -> 12,240
C69: 1) | D69: Mempelajari pedoman pelaksaaan tugas; | F69: 4 | H69: 60 | I69: =F69*H69 -> 240
C70: 2) | D70: Meneliti dan memveriifkasi data penyelenggaraan kegiatan pemerintahan di tingkat kecamatan; | F70: 40 | H70: 60 | I70: =F70*H70 -> 2,400
C71: 3) | D71: Melaksanakan pembinaan penyelenggaraan pemerintahan desa dan/atau kelurahan; | F71: 40 | H71: 180 | I71: =F71*H71 -> 7,200
C72: 4) | D72: Mendisposisi bawahan untuk tindak lanjut pelaksanaan; | F72: 40 | H72: 30 | I72: =F72*H72 -> 1,200
C73: 5) | D73: Menyelia hasil pelaksanaan tugas bawahan. | F73: 40 | H73: 30 | I73: =F73*H73 -> 1,200
B75: 10 | C75: Melaksanakan pelayanan masyarakat yang menjadi ruang lingkup tugasnya dan/atau yang belum dapat dilaksanakan pemerintahan desa atau kelurahan. | E75: Layanan | F75: 1,000 | G75: dokumen | H75: =I75/F75 -> 21 | I75: =SUM(I76:I80) -> 21,400
C76: 1) | D76: Mempelajari pedoman pelaksanaan tugas; | F76: 60 | H76: 60 | I76: =F76*H76 -> 3,600
C77: 2) | D77: Mempelajari, meneliti, dan memverifikasi kelangkapan dokumen pengajuan pelayanan masyarakat; | F77: 1,000 | H77: 5 | I77: =F77*H77 -> 5,000
C78: 3) | D78: Mengkoordinasikan substansi jenis pelayanan ke pihak-pihak terkait; | F78: 60 | H78: 120 | I78: =F78*H78 -> 7,200
C79: 4) | D79: Menandatangani dokumen pangajuan pelayanan masyarakat; | F79: 1,000 | H79: 5 | I79: =F79*H79 -> 5,000
C80: 5) | D80: Mendisposisi dan menyerahkan dokumen ke bawahan untuk ditindaklanjuti. | F80: 60 | H80: 10 | I80: =F80*H80 -> 600
B82: 11 | C82: Melaksanakan monitoring kegiatan pembangunan dan kemasyarakatan sesuai kebutuhan untuk meningkatkan kesejahteraan masyarakat. | E82: kegiatan | F82: 60 | G82: kali | H82: =I82/F82 -> 210 | I82: =SUM(I83:I86) -> 12,600
C83: 1) | D83: Mempelajari pedoman pelaksanaan tugas; | F83: 60 | H83: 30 | I83: =F83*H83 -> 1,800
C84: 2) | D84: Menyelia data dukung kegiatan; | F84: 60 | H84: 30 | I84: =F84*H84 -> 1,800
C85: 3) | D85: Melaksanakan monitoring kegiatan; | F85: 60 | H85: 120 | I85: =F85*H85 -> 7,200
C86: 4) | D86: Menyusun laporan pelaksanaan kegiatan. | F86: 60 | H86: 30 | I86: =F86*H86 -> 1,800
B88: 12 | C88: Melaksanakan kewenangan pemerintahan yang dilimpahkan oleh Bupati sesuai ketentuan untuk mendukung kelancaran penyelenggaraan urusan pemerintah daerah. | E88: kegiatan | F88: 12 | G88: dokumen | H88: =I88/F88 -> 420 | I88: =SUM(I89:I93) -> 5,040
C89: 1) | D89: Mempelajari peraturan perundangan, petunjuk teknis dan kebijakan pelaksanaan kegiatan; | F89: 12 | H89: 120 | I89: =F89*H89 -> 1,440
C90: 2) | D90: Mengidentifikasi permasalahan terkait pelimpahan wewenang; | F90: 12 | H90: 90 | I90: 1,080
C91: 3) | D91: Mengkonsultasikan permasalahan kepada pimpinan; | F91: 12 | H91: 60 | I91: 720
C92: 4) | D92: Mengkoordinasikan pelaksanaan kewenangan pemerintahan yang dilimpahkan oleh Bupati; | F92: 12 | H92: 120 | I92: 1,440
C93: 5) | D93: Memberikan penugasan ke bawahan untuk tindak lanjut pelaksanaan pelimpahan wewenang; | F93: 12 | H93: 30 | I93: 360
C94: 6) | D94: Menyelia hasil pelaksanaan tugas bawahan. | F94: 12 | H94: 30 | I94: 360
B96: 13 | C96: Melaksanakan monitoring dan evaluasi pelaksanaan tugas di lingkungan Kecamatan dengan cara mengidentifikasi hambatan yang ada dalam rangka perbaikan kinerja di masa mendatang. | E96: kegiatan | F96: 24 | G96: kali | H96: =I96/F96 -> 105 | I96: =SUM(I97:I100) -> 2,520
C97: 1) | D97: Mempelajari laporan pelaksanaan kegiatan bawahan; | F97: 24 | H97: 15 | I97: =F97*H97 -> 360
C98: 2) | D98: Membandingkan target dengan realisasi pelaksanaan tugas; | F98: 24 | H98: 30 | I98: =F98*H98 -> 720
C99: 3) | D99: Memberikan catatan atau penilaian pada hasil pelaksanaan tugas; | F99: 24 | H99: 30 | I99: =F99*H99 -> 720
C100: 4) | D100: Memberikan langkah-langkah perbaikan dalam pelaksanaan kegiatan. | F100: 24 | H100: 30 | I100: =F100*H100 -> 720
B102: 14 | C102: Menyusun laporan pelaksanaan tugas di lingkungan Kecamatan sesuai prosedur dan peraturan yang berlaku untuk pertanggungjawaban kinerja dan rencana yang akan datang. | E102: Laporan | F102: 12 | G102: dokumen | H102: =I102/F102 -> 110 | I102: =SUM(I103:I106) -> 1,320
C103: 1) | D103: Mengumpulkan bahan laporan pelaksanaan tugas; | F103: 12 | H103: 20 | I103: =F103*H103 -> 240
C104: 2) | D104: Menganalisis bahan penyusunan laporan; | F104: 12 | H104: 30 | I104: =F104*H104 -> 360
C105: 3) | D105: Membuat laporan pelaksanaan tugas; | F105: 12 | H105: 30 | I105: =F105*H105 -> 360
C106: 4) | D106: Menyampaikan laporan kepada pimpinan; | F106: 12 | H106: 30 | I106: =F106*H106 -> 360
B108: 15 | C108: Melaksanakan tugas kedinasan lain yang diperintahkan oleh pimpinan baik lisan maupun tertulis sesuai prosedur untuk mendukung kelancaran pelaksanaan tugas satuan kerja. | E108: kegiatan | F108: 12 | G108: kali | H108: =I108/F108 -> 360 | I108: =SUM(I109:I112) -> 4,320
C109: 1) | D109: Mempelajari tugas; | F109: 12 | H109: 120 | I109: =F109*H109 -> 1,440
C110: 2) | D110: Menjalankan tugas; | F110: 12 | H110: 120 | I110: =F110*H110 -> 1,440
C111: 3) | D111: Melaporkan hasil pelaksanaan tugas. | F111: 12 | H111: 120 | I111: =F111*H111 -> 1,440
A113: II | B113: Konseptual & Managerial (SEKCAM) | I113: =I114+I120+I127+I134+I142+I151+I159+I167+I175+I183+I190+I198+I205+I213+I219+I225 -> 88,950 | J113: Sekretaris Kecamatan | K113: 1 orang
B114: 1 | C114: Merencanakan kegiatan Sekretariat sesuai program kerja kecamatan dan ketentuan yang berlaku untuk pedoman pelaksanaan tugas. | E114: Program Kerja | F114: 2 | G114: dokumen | H114: =I114/F114 -> 225 | I114: =SUM(I115:I118) -> 450
C115: 1) | D115: Menelaah Program Kerja Kecamatan; | F115: 2 | H115: 60 | I115: =F115*H115 -> 120
C116: 2) | D116: Menyusun konsep rencana kegiatan Sekretariat; | F116: 2 | H116: 120 | I116: =F116*H116 -> 240
C117: 3) | D117: Mengkonsultasikan konsep rencana kegiatan dengan pimpinan untuk mendapatkan pengarahan; | F117: 2 | H117: 30 | I117: =F117*H117 -> 60
C118: 4) | D118: Menetapkan rencana kegiatan Sekretariat; | F118: 2 | H118: 15 | I118: =F118*H118 -> 30
B120: 2 | C120: Membagi tugas kepada bawahan di lingkungan Sekretariat sesuai dengan beban kerja dan tanggung jawab masing-masing untuk kelancaran pelaksanaan tugas. | E120: Distribusi Tugas | F120: 12 | G120: kali | H120: =I120/F120 -> 240 | I120: =SUM(I121:I125) -> 2,880
C121: 1) | D121: Menjabarkan rencana kegiatan menjadi tugas-tugas yang harus dilaksanakan bawahan; | F121: 12 | H121: 60 | I121: =F121*H121 -> 720
C122: 2) | D122: Memaparkan rencana kegiatan; | F122: 12 | H122: 60 | I122: =F122*H122 -> 720
C123: 3) | D123: Menghimpun saran dan masukan dari bawahan; | F123: 12 | H123: 30 | I123: =F123*H123 -> 360
C124: 4) | D124: Menentukan target waktu penyelesaian; | F124: 12 | H124: 30 | I124: =F124*H124 -> 360
C125: 5) | D125: Memberikan petunjuk pelaksanaan tugas kepada bawahan. | F125: 12 | H125: 60 | I125: =F125*H125 -> 720
B127: 3 | C127: Melaksanakan supervisi pelaksanaan tugas bawahan di lingkungan Sekretariat setiap saat sesuai dengan tugas dan tanggung jawabnya agar pekerjaan berjalan tertib dan lancar. | E127: kegiatan | F127: 24 | G127: kali | H127: =I127/F127 -> 180 | I127: =SUM(I128:I132) -> 4,320
C128: 1) | D128: Menjelaskan tugas yang akan dilaksanakan bawahan; | F128: 24 | H128: 30 | I128: =F128*H128 -> 720
C129: 2) | D129: Mengidentifikasi kesulitan yang dialami bawahan; | F129: 24 | H129: 30 | I129: =F129*H129 -> 720
C130: 3) | D130: Mengkoordinasikan pelaksanaan tugas; | F130: 24 | H130: 60 | I130: =F130*H130 -> 1,440
C131: 4) | D131: Mengkonsultasikan permasalahan kepada pimpinan; | F131: 24 | H131: 30 | I131: =F131*H131 -> 720
C132: 5) | D132: Memberikan arahan kepada bawahan terkait permasalahan dalam pelaksanaan tugas. | F132: 24 | H132: 30 | I132: =F132*H132 -> 720
B134: 4 | C134: Mengkoordinasikan perencanaan kegiatan seluruh Seksi sesuai ketentuan sebagai pedoman pelaksanaan tugas. | E134: Draf Rencana Kerja | F134: 2 | G134: dokumen | H134: =I134/F134 -> 600 | I134: =SUM(I135:I140) -> 1,200
C135: 1) | D135: Mempelajari pedoman pelaksanaan tugas; | F135: 2 | H135: 60 | I135: =F135*H135 -> 120
C136: 2) | D136: Melaksanakan inventarisasi rencana kegiatan seluruh Seksi; | F136: 2 | H136: 60 | I136: 120
C137: 3) | D137: Melaksanakan analisa dan pengolahan data rencana kegiatan seluruh Seksi; | F137: 2 | H137: 120 | I137: 240
C138: 4) | D138: Mengkoordinasikan dan memverifikasi data rencana kegiatan seluruh Seksi; | F138: 2 | H138: 120 | I138: 240
C139: 5) | D139: Menyusun draft kompilasi rencana kegiatan seluruh Seksi; | F139: 2 | H139: 180 | I139: 360
C140: 6) | D140: Mengkonsultasikan rencana kegiatan seluruh Seksi ke pimpinan. | F140: 2 | H140: 60 | I140: 120
B142: 5 | C142: Mengkoordinasikan perencanaan, pelaksanaan dan pemantauan hasil musyawarah perencanaan pembangunan (musrenbang) desa / kelurahan dan kecamatan. | E142: Draf RPTD dan RPTK | F142: 21 | G142: dokumen | H142: =I142/F142 -> 320 | I142: =SUM(I143:I149) -> 6,720
C143: 1) | D143: Mempelajari pedoman pelaksanaan tugas; | F143: 2 | H143: 60 | I143: =F143*H143 -> 120
C144: 2) | D144: Menyusun pedoman dan mekanisme pelaksanaan kegiatan; | F144: 1 | H144: 180 | I144: 180
C145: 3) | D145: Membagi dan menjelaskan tugas ke bawahan; | F145: 1 | H145: 60 | I145: 60
C146: 4) | D146: Mengkoordinasikan pelaksanaan kegiatan; | F146: 21 | H146: 120 | I146: 2,520
C147: 5) | D147: Merumuskan hasil musrenbang; | F147: 21 | H147: 120 | I147: 2,520
C148: 6) | D148: Melaporkan dan mengkonsultasikan permasalahan kepada pimpinan; | F148: 21 | H148: 60 | I148: 1,260
C149: 7) | D149: Memberikan arahan kepada bawahan terkait permasalahan dalam pelaksanaan tugas. | F149: 1 | H149: 60 | I149: 60
B151: 6 | C151: Mengoordinasikan monitoring dan evaluasi kegiatan seluruh Seksi sesuai ketentuan agar kegiatan dapat terlaksana sesuai rencana. | E151: Laporan Hasil Monitoring dan Evaluasi | F151: 12 | G151: dokumen | H151: =I151/F151 -> 720 | I151: =SUM(I152:I157) -> 8,640
C152: 1) | D152: Mempelajari pedoman pelaksaaan tugas; | F152: 12 | H152: 30 | I152: =F152*H152 -> 360
C153: 2) | D153: Melaksanakan inventarisasi rencana dan realisasi kegiatan seluruh Seksi; | F153: 12 | H153: 120 | I153: 1,440
C154: 3) | D154: Melaksanakan analisis dan pengolahan data antara target dan realisasi kegiatan seluruh Seksi; | F154: 12 | H154: 180 | I154: 2,160
C155: 4) | D155: Mengkoordinasikan dan memverifikasi data hasil monitoring dan evaluasi kegiatan seluruh Seksi; | F155: 12 | H155: 180 | I155: 2,160
C156: 5) | D156: Menyusun draft hasil monitoring dan evaluasi kegiatan seluruh Seksi; | F156: 12 | H156: 180 | I156: 2,160
C157: 6) | D157: Menyampaikan draft hasil monitoring dan evaluasi ke atasan. | F157: 12 | H157: 30 | I157: 360
B159: 7 | C159: Membantu Camat dalam mengoordinasikan tugas Unit Pelaksana Teknis (UPT) Badan / Dinas, petugas Badan / Dinas, dan instansi vertikal yang melaksanakan operasional kegiatan di kecamatan. | E159: Laporan | F159: 12 | G159: dokumen | H159: =I159/F159 -> 750 | I159: =SUM(I160:I165) -> 9,000
C160: 1) | D160: Mempelajari pedoman pelaksaaan tugas; | F160: 12 | H160: 60 | I160: =F160*H160 -> 720
C161: 2) | D161: Melaksanakan inventarisasi rencana dan realisasi kegiatan (UPT), petugas Badan/Dinas, dan instansi vertikal; | F161: 12 | H161: 120 | I161: 1,440
C162: 3) | D162: Melaksanakan analisis dan pengolahan data antara target dan realisasi kegiatan; | F162: 12 | H162: 180 | I162: 2,160
C163: 4) | D163: Mengkoordinasikan dan memverifikasi data hasil analisis dan pegolahan data; | F163: 12 | H163: 180 | I163: 2,160
C164: 5) | D164: Menyusun draft hasil koordinasi kegiatan (UPT), petugas Badan/Dinas, dan instansi vertikal; | F164: 12 | H164: 180 | I164: 2,160
C165: 6) | D165: Mengkonsultasikan dan menyampaikan draft hasil koordinasi ke atasan. | F165: 12 | H165: 30 | I165: 360
B167: 8 | C167: Mengoordinasikan penyusunan laporan-laporan yang dibutuhkan sesuai ketentuan agar informasi sampai pada pihak-pihak terkait. | E167: Laporan | F167: 12 | G167: dokumen | H167: =I167/F167 -> 750 | I167: =SUM(I168:I173) -> 9,000
C168: 1) | D168: Mempelajari pedoman pelaksaaan tugas; | F168: 12 | H168: 60 | I168: =F168*H168 -> 720
C169: 2) | D169: Melaksanakan inventarisasi data bahan laporan; | F169: 12 | H169: 120 | I169: 1,440
C170: 3) | D170: Melaksanakan analisis dan pengolahan data bahan laporan; | F170: 12 | H170: 180 | I170: 2,160
C171: 4) | D171: Mengkoordinasikan dan memverifikasi data bahan laporan; | F171: 12 | H171: 180 | I171: 2,160
C172: 5) | D172: Menyusun draft laporan; | F172: 12 | H172: 180 | I172: 2,160
C173: 6) | D173: Mengkonsultasikan dan menyampaikan draft laporan ke atasan. | F173: 12 | H173: 30 | I173: 360
B175: 9 | C175: Menyusun rencana anggaran dan melaksanakan pengelolaan administrasi keuangan sesuai ketentuan untuk mendukung pelaksanaan program dan kegiatan. | E175: RKA, DPA & SPJ Keuangan | F175: 60 | G175: dokumen | H175: =I175/F175 -> 582 | I175: =SUM(I176:I181) -> 34,920
C176: 1) | D176: Mempelajari pedoman pelaksaaan tugas; | F176: 12 | H176: 60 | I176: =F176*H176 -> 720
C177: 2) | D177: Melaksanakan inventarisasi rencana dan realisasi anggaran; | F177: 60 | H177: 60 | I177: 3,600
C178: 3) | D178: Melaksanakan analisis data rencana dan realisasi anggaran; | F178: 60 | H178: 60 | I178: 3,600
C179: 4) | D179: Menyusun rencana kegiatan dan anggaran sampai dengan dokumen pelaksanaan anggaran; | F179: 60 | H179: 240 | I179: 14,400
C180: 5) | D180: Menyusun draft laporan pertanggungjawaban pengelolaan anggaran; | F180: 60 | H180: 180 | I180: 10,800
C181: 6) | D181: Mengkonsultasi dan menyampaikan laporan ke pimpinan. | F181: 60 | H181: 30 | I181: 1,800
B183: 10 | C183: Mengkoordinasikan pengelolaan surat menyurat dan kearsipan sesuai ketentuan untuk memudahkan dalam menemukan kembali. | E183: Kegiatan | F183: 24 | G183: kali | H183: =I183/F183 -> 95 | I183: =SUM(I185:I188) -> 2,280
C184: 1) | D184: Mempelajari pedoman pelaksaaan tugas; | F184: 6 | H184: 30 | I184: =F184*H184 -> 180
C185: 2) | D185: Menyiapkan sarana dan prasarana pengelola surat-menyurat dan kearsipan; | F185: 24 | H185: 30 | I185: =F185*H185 -> 720
C186: 3) | D186: Melakukan koordinasi persiapan teknis dengan pihak-pihak terkait; | F186: 24 | H186: 30 | I186: =F186*H186 -> 720
C187: 4) | D187: Mengkoordinasikan ke masing-masing seksi terkait surat yang akan dikirim ke instansi lain; | F187: 24 | H187: 20 | I187: =F187*H187 -> 480
C188: 5) | D188: Mengkonsultasikan kepada pimpinan. | F188: 24 | H188: 15 | I188: =F188*H188 -> 360
B190: 11 | C190: Mengoordinasikan pengelolaan dokumentasi produk hukum dan kegiatan sesuai ketentuan untuk memudahkan dalam menemukan kembali.. | E190: Kegiatan | F190: 6 | G190: kali | H190: =I190/F190 -> 195 | I190: =SUM(I191:I196) -> 1,170
C191: 1) | D191: Mempelajari pedoman pelaksaaan tugas; | F191: 6 | H191: 30 | I191: =F191*H191 -> 180
C192: 2) | D192: Menyiapkan sarana dan prasarana pengelolaan dokumentasi produk hukum dan kegiatan; | F192: 6 | H192: 30 | I192: 180
C193: 3) | D193: Melakukan koordinasi teknis dengan pihak-pihak terkait; | F193: 6 | H193: 30 | I193: 180
C194: 4) | D194: Mengkonsultasikan kepada pimpinan. | F194: 6 | H194: 30 | I194: 180
C195: 5) | D195: Menyelia penataan dokumentasi produk hukum dan kegiatan; | F195: 6 | H195: 60 | I195: 360
C196: 6) | D196: Melaporkan hasil kegiatan kepada pimpinan. | F196: 6 | H196: 15 | I196: 90
B198: 12 | C198: Menyusun rencana kebutuhan dan melaksanakan pengelolaan barang dan perlengkapan dan rumah tangga sesuai ketentuan untuk mendukung pelaksanaan tugas. | E198: RKBU | F198: 2 | G198: dokumen | H198: =I198/F198 -> 195 | I198: =SUM(I199:I203) -> 390
C199: 1) | D199: Menganalisis target dengan realisasi pelaksanaan tugas tahun sebelumnya; | F199: 2 | H199: 30 | I199: =F199*H199 -> 60
C200: 2) | D200: Menyusun rencana kebutuhan barang; | F200: 2 | H200: 60 | I200: =F200*H200 -> 120
C201: 3) | D201: Menyelia proses pengadaan barang; | F201: 2 | H201: 60 | I201: =F201*H201 -> 120
C202: 4) | D202: Menyelia administrasi pengelolaan barang; | F202: 2 | H202: 30 | I202: =F202*H202 -> 60
C203: 5) | D203: Menyusun, mengkonkonsultasikan dan menyampaikan laporan ke pimpinan. | F203: 2 | H203: 15 | I203: =F203*H203 -> 30
B205: 13 | C205: Mengkoordinasikan pengelolaan administrasi kepegawaian dan pengembangan sumber daya manusia sesuai ketentuan untuk meningkatkan kompetensi pegawai. | E205: Administrasi Kepegawaian | F205: 12 | G205: dokumen | H205: =I205/F205 -> 210 | I205: =SUM(I206:I211) -> 2,520
C206: 1) | D206: Mempelajari pedoman administrasi kepegawaian; | F206: 12 | H206: 30 | I206: =F206*H206 -> 360
C207: 2) | D207: Mengidentifikasi penjagaan administrasi Kepegawaian sesuai dengan ketentuan; | F207: 12 | H207: 30 | I207: 360
C208: 3) | D208: Mengkoordinasikan pelaksanaan pengelolaan administrasi kepegawaian dan pengembangan sumber daya manusia; | F208: 12 | H208: 60 | I208: 720
C209: 4) | D209: Menyelia usulan dokumen dan laporan kepegawaian (KP, KGB, DUK, Formasi, dan lainnya); | F209: 12 | H209: 30 | I209: 360
C210: 5) | D210: Mengkonsultasikan permasalahan kepada pimpinan; | F210: 12 | H210: 30 | I210: 360
C211: 6) | D211: Melaksanakan pemantauan terkait dengan tindak lanjut administrasi kepegawaian. | F211: 12 | H211: 30 | I211: 360
B213: 14 | C213: Melaksanakan monitoring dan evaluasi pelaksanaan tugas di lingkungan Sekretariat dengan cara mengidentifikasi hambatan yang ada dalam rangka perbaikan kinerja di masa mendatang. | E213: Kegiatan | F213: 12 | G213: dokumen | H213: =I213/F213 -> 135 | I213: =SUM(I214:I217) -> 1,620
C214: 1) | D214: Mempelajari laporan pelaksanaan kegiatan bawahan; | F214: 12 | H214: 30 | I214: =F214*H214 -> 360
C215: 2) | D215: Membandingkan target dengan realisasi pelaksanaan tugas; | F215: 12 | H215: 45 | I215: =F215*H215 -> 540
C216: 3) | D216: Memberikan catatan atau penilaian pada hasil pelaksanaan tugas; | F216: 12 | H216: 30 | I216: =F216*H216 -> 360
C217: 4) | D217: Memberikan langkah-langkah perbaikan dalam pelaksanaan kegiatan. | F217: 12 | H217: 30 | I217: =F217*H217 -> 360
B219: 15 | C219: Menyusun laporan pelaksanaan tugas di lingkungan Sekretariat sesuai prosedur dan peraturan yang berlaku untuk pertanggungjawaban kinerja dan rencana yang akan datang. | E219: Laporan | F219: 12 | G219: dokumen | H219: =I219/F219 -> 110 | I219: =SUM(I220:I223) -> 1,320
C220: 1) | D220: Mengumpulkan bahan laporan pelaksanaan tugas; | F220: 12 | H220: 20 | I220: =F220*H220 -> 240
C221: 2) | D221: Menganalisis bahan penyusunan laporan; | F221: 12 | H221: 30 | I221: =F221*H221 -> 360
C222: 3) | D222: Membuat laporan pelaksanaan tugas; | F222: 12 | H222: 30 | I222: =F222*H222 -> 360
C223: 4) | D223: Menyampaikan laporan kepada pimpinan; | F223: 12 | H223: 30 | I223: =F223*H223 -> 360
B225: 16 | C225: Melaksanakan tugas kedinasan lain yang diperintahkan oleh pimpinan baik lisan maupun tertulis sesuai prosedur untuk mendukung kelancaran pelaksanaan tugas satuan kerja. | E225: kegiatan | F225: 7 | G225: kali | H225: =I225/F225 -> 360 | I225: =SUM(I226:I229) -> 2,520
C226: 1) | D226: Mempelajari tugas; | F226: 7 | H226: 120 | I226: =F226*H226 -> 840
C227: 2) | D227: Menjalankan tugas; | F227: 7 | H227: 60 | I227: =F227*H227 -> 420
C228: 3) | D228: Melaporkan hasil pelaksanaan tugas | F228: 7 | H228: 180 | I228: =F228*H228 -> 1,260
A230: III.1 | B230: KONSEPTUAL & MANAGERIAL (KASUBBAG PERMONEVLAP) | I230: =I231+I237+I244+I251+I259+I267+I278+I283+I291+I298+I306+I313+I321+I329+I335+I341 -> 56,370 | J230: Kasubbag Perencanaan Monitoring Evaluasi dan Pelaporan | K230: 1 orang
B231: 1 | C231: Merencanakan kegiatan Sub Bagian Perencanaan, Monitoring, Evaluasi dan Pelaporan sesuai program kerja kecamatan dan ketentuan yang berlaku untuk pedoman pelaksanaan tugas. | E231: Program Kerja | F231: 2 | G231: dokumen | H231: =I231/F231 -> 225 | I231: =SUM(I232:I235) -> 450
C232: 1) | D232: Menelaah Program Kerja Sekretariat Kecamatan; | F232: 2 | H232: 60 | I232: =F232*H232 -> 120
C233: 2) | D233: Menyusun konsep rencana kegiatan Sub Bagian Perencanaan, Monitoring, Evaluasi dan Pelaporan; | F233: 2 | H233: 120 | I233: =F233*H233 -> 240
... 1170 more rows
